[Event "28th Hit Open-A 2024"]
[Site "Nova Gorica"]
[Date "2024.01.26"]
[Round "1.16"]
[White "Mestek, Igor"]
[Black "Lavrencic, Matic"]
[Result "0-1"]
[ECO "B33"]
[WhiteElo "2080"]
[BlackElo "2299"]
[Annotator "RC"]
[PlyCount "128"]
[EventDate "2024.01.22"]
[EventType "swiss"]
[EventCountry "SLO"]
[SourceTitle "playchess.com"]
[Source "ChessBase"]
[SourceQuality "1"]
[TimeControl "5400+30"]

1. e4 {[%emt 0:00:04]} c5 {[%emt 0:00:20]} 2. Nf3 {[%emt 0:00:39]} Nc6 {[%emt 0:01:13]} 3. d4 {[%emt 0:01:30]} cxd4 {[%emt 0:00:23]} 4. Nxd4 {[%emt 0:00:10]} e5 {[%emt 0:00:40]} 5. Nxc6 {[%emt 0:03:02]} bxc6 {[%emt 0:00:36]} 6. Bd3 {[%emt 0:00:37]} Nf6 {[%emt 0:01:36]} 7. O-O {[%emt 0:07:36]} Bc5 {[%emt 0:07:23]} 8. Nc3 {[%emt 0:02:47]} O-O {[%emt 0:05:28]} 9. Na4 {[%emt 0:06:18]} Be7 {[%emt 0:01:48]} 10. c4 {[%emt 0:01:21]} d6 {[%emt 0:02:21]} 11. b3 {[%emt 0:03:02]} Be6 {[%emt 0:04:01]} 12. Bb2 {[%emt 0:09:15]} Nd7 {[%emt 0:02:52]} 13. Qe2 {[%emt 0:02:45]} Qc7 {[%emt 0:03:54]} 14. Rad1 {[%emt 0:01:44]} Rad8 {[%emt 0:05:46]} 15. Bb1 {[%emt 0:02:31]} g6 {[%emt 0:07:25]} 16. Ba3 {[%emt 0:08:38]} Nb6 {[%emt 0:05:29]} 17. Nc3 {[%emt 0:05:44]} a5 {[%emt 0:09:38]} 18. Qe3 {[%emt 0:06:21]} a4 {[%emt 0:09:59]} 19. Bc2 {[%emt 0:07:43]} axb3 {[%emt 0:01:46]} 20. axb3 {[%emt 0:00:09]} Ra8 {[%emt 0:06:01]} 21. Bxd6 {[%emt 0:06:11]} Bxd6 {[%emt 0:00:39]} 22. c5 {[%emt 0:00:07]} Bxc5 {[%emt 0:02:48]} 23. Qxc5 {[%emt 0:00:10]} Nd7 {[%emt 0:00:06]} 24. Qe3 {[%emt 0:04:42]} Rfb8 {[%emt 0:01:50]} 25. Na4 {[%emt 0:05:36]} Ra5 {[%emt 0:04:46]} 26. Rd3 {[%emt 0:00:00]} Rab5 {[%emt 0:03:06]} 27. Rfd1 {[%emt 0:00:00]} Nf8 {[%emt 0:00:20]} 28. h3 {[%emt 0:00:00]} Qa5 {[%emt 0:06:09]} 29. Rc3 {[%emt 0:01:27]} Qc7 {[%emt 0:02:46]} 30. Rcd3 {[%emt 0:02:59]} Rb4 {[%emt 0:03:44]} 31. Rc3 {[%emt 0:02:34]} Nd7 {[%emt 0:00:32]} 32. Qg5 {[%emt 0:06:17]} Rd4 {[%emt 0:00:34]} 33. Qe7 {[%emt 0:00:32]} Rxd1+ {[%emt 0:00:09]} 34. Bxd1 {[%emt 0:00:06]} Qa5 {[%emt 0:00:32]} 35. Qd6 {[%emt 0:01:25]} Rc8 {[%emt 0:00:39]} 36. b4 {[%emt 0:02:27]} Qb5 {[%emt 0:00:23]} 37. Bg4 {[%emt 0:00:48]} Qxa4 {[%emt 0:00:43]} 38. Bxe6 {[%emt 0:00:08]} Qa1+ {[%emt 0:00:16]} 39. Kh2 {[%emt 0:00:06]} Qxc3 {[%emt 0:00:10]} 40. Bxf7+ {[%emt 0:00:28]} Kg7 {[%emt 0:01:07]} 41. Qxd7 {[%emt 0:00:07]} Rf8 {[%emt 0:00:23]} 42. Bd5+ {[%emt 0:01:36]} Kh6 {[%emt 0:00:23]} 43. Qxc6 {[%emt 0:01:01]} Qxc6 {[%emt 0:00:36]} 44. Bxc6 {[%emt 0:00:10]} Rxf2 {[%emt 0:00:03]} 45. b5 {[%emt 0:00:11]} Rb2 {[%emt 0:00:04]} 46. h4 {[%emt 0:01:02]} Kg7 {[%emt 0:01:11]} 47. Kh3 {[%emt 0:00:27]} Rb3+ {[%emt 0:00:12]} 48. g3 {[%emt 0:00:11]} Kf6 {[%emt 0:00:06]} 49. Kg4 {[%emt 0:00:20]} Ke7 {[%emt 0:00:27]} 50. h5 {[%emt 0:01:52]} gxh5+ {[%emt 0:00:23]} 51. Kh4 {[%emt 0:00:28]} Kd6 {[%emt 0:00:20]} 52. Be8 {[%emt 0:00:14]} Kc5 {[%emt 0:00:34]} 53. Bd7 {[%emt 0:00:43]} Kd4 {[%emt 0:00:48]} 54. Bc6 {[%emt 0:00:33]} Kc5 {[%emt 0:01:25]} 55. Be8 {[%emt 0:00:09]} Kb6 {[%emt 0:00:27]} 56. Bd7 {[%emt 0:00:12]} Rd3 {[%emt 0:00:29]} 57. Bc6 {[%emt 0:00:31]} Re3 {[%emt 0:00:23]} 58. Kh3 {[%emt 0:00:11]} Re1 {[%emt 0:00:15]} 59. Kg2 {[%emt 0:00:32]} Kc5 {[%emt 0:00:40]} 60. Kh2 {[%emt 0:00:07]} Rb1 {[%emt 0:00:41]} 61. Be8 {[%emt 0:00:15]} Rxb5 {[%emt 0:00:28]} 62. Bxh5 {[%emt 0:01:05]} Kd4 {[%emt 0:00:07]} 63. Bf3 {[%emt 0:00:52]} Ke3 {[%emt 0:00:04]} 64. Bd1 {[%emt 0:00:27]} Rb2+ {[%emt 0:00:14]} 0-1

[Event "28th Hit Open-A 2024"]
[Site "Nova Gorica"]
[Date "2024.01.26"]
[Round "1.17"]
[White "Stevanic, David"]
[Black "Debevec, Blaz"]
[Result "1-0"]
[ECO "B30"]
[WhiteElo "2294"]
[BlackElo "2077"]
[Annotator "RC"]
[PlyCount "45"]
[EventDate "2024.01.22"]
[EventType "swiss"]
[EventCountry "SLO"]
[SourceTitle "playchess.com"]
[Source "ChessBase"]
[SourceQuality "1"]
[TimeControl "5400+30"]

1. e4 {[%emt 0:00:06]} c5 {[%emt 0:00:58]} 2. Nf3 {[%emt 0:00:11]} Nc6 {[%emt 0:00:55]} 3. Bb5 {[%emt 0:00:05]} e6 {[%emt 0:00:56]} 4. O-O {[%emt 0:00:41]} Nge7 {[%emt 0:00:22]} 5. Re1 {[%emt 0:00:06]} a6 {[%emt 0:00:49]} 6. Bf1 {[%emt 0:00:05]} d5 {[%emt 0:01:19]} 7. exd5 {[%emt 0:00:21]} Nxd5 {[%emt 0:00:40]} 8. d4 {[%emt 0:01:30]} cxd4 {[%emt 0:01:46]} 9. Nxd4 {[%emt 0:01:10]} Bc5 {[%emt 0:01:54]} 10. Nxc6 {[%emt 0:03:25]} bxc6 {[%emt 0:00:06]} 11. c4 {[%emt 0:06:38]} Ne7 {[%emt 0:04:25]} 12. Qf3 {[%emt 0:04:52]} O-O {[%emt 0:01:11]} 13. Nc3 {[%emt 0:01:40]} Bb7 {[%emt 0:02:14]} 14. Ne4 {[%emt 0:15:09]} Bd4 {[%emt 0:00:50]} 15. c5 {[%emt 0:07:37]} Rb8 {[%emt 0:02:53]} 16. Rd1 {[%emt 0:10:01]} e5 {[%emt 0:01:10]} 17. Be3 {[%emt 0:02:27]} Qd5 {[%emt 0:02:53]} 18. Rac1 {[%emt 0:04:58]} Qxa2 {[%emt 0:06:24]} 19. Bc4 {[%emt 0:00:30]} Qxb2 {[%emt 0:00:32]} 20. Bxd4 {[%emt 0:02:38]} exd4 {[%emt 0:00:22]} 21. Rb1 {[%emt 0:00:38]} Qc2 {[%emt 0:01:38]} 22. Bb3 {[%emt 0:00:52]} d3 {[%emt 0:00:36]} 23. Re1 {[%emt 0:01:02]} 1-0

[Event "28th Hit Open-A 2024"]
[Site "Nova Gorica"]
[Date "2024.01.26"]
[Round "1.18"]
[White "Markocic, Tine"]
[Black "Furlan, Miha"]
[Result "0-1"]
[ECO "C19"]
[WhiteElo "2055"]
[BlackElo "2287"]
[Annotator "TA"]
[PlyCount "90"]
[EventDate "2024.01.22"]
[EventType "swiss"]
[EventCountry "SLO"]
[SourceTitle "playchess.com"]
[Source "ChessBase"]
[SourceQuality "1"]
[TimeControl "5400+30"]

{[%evp 19,90,-7,0,-2,4,-5,0,-73,-72,-193,-47,-75,-79,-63,-68,-65,-14,-45,-26,-17,-37,-100,-63,-62,-64,-112,-75,-75,-67,-68,-58,-57,-56,-62,-64,-85,-68,-79,-44,-56,-20,-105,-98,-104,-80,-82,-83,-87,-83,-83,-83,-87,-98,-86,-86,-202,-194,-257,-250,-422,-272,-404,-363,-669,-568,-916,-865,-620,-604,-609,-566,-29978,-29980]} 1. e4 {[%emt 0:00:07]} e6 {[%emt 0:00:16]} 2. d4 {[%emt 0:00:29]} d5 {[%emt 0:00:09]} 3. Nc3 {[%emt 0:00:40]} Bb4 {[%emt 0:01:09]} 4. e5 {[%emt 0:00:41]} c5 {[%emt 0:01:03]} 5. a3 {[%emt 0:00:54]} Bxc3+ {[%emt 0:00:12]} 6. bxc3 {[%emt 0:00:07]} Ne7 {[%emt 0:01:10]} 7. Nf3 {[%emt 0:13:23]} b6 {[%emt 0:02:09]} 8. Bb5+ {[%emt 0:06:51]} Bd7 {[%emt 0:00:11]} 9. a4 {[%emt 0:00:27]} Bxb5 {[%emt 0:08:04]} 10. axb5 {[%emt 0:00:07]} Qd7 {[%emt 0:00:31]} 11. dxc5 {[%emt 0:06:11] Strongly threatening c6.} bxc5 {[%emt 0:03:23] [#] Black is weak on the dark squares} 12. c4 $1 {[%emt 0:06:03]} dxc4 {[%emt 0:02:36]} 13. b6 {[%emt 0:03:28]} (13. O-O $11 {keeps the balance.}) 13... Qb7 $17 {[%emt 0:10:26]} 14. Qd6 {[%emt 0:06:16]} (14. bxa7 $17 Rxa7 15. Rxa7 Qxa7 16. Nd2) 14... Nd7 {[%emt 0:03:18]} ({Black should try} 14... axb6 $19 15. Rxa8 Qxa8 16. Qxb6 Nd7) 15. Rxa7 {[%emt 0:03:36]} Rxa7 {[%emt 0:01:17]} 16. bxa7 {[%emt 0:00:06]} Qxa7 {[%emt 0:01:08]} 17. O-O {[%emt 0:10:40]} Qb6 {[%emt 0:09:38]} (17... Nf5 $15 18. Qc6 O-O) 18. Nd2 {[%emt 0:03:46]} Qxd6 {[%emt 0:03:22]} 19. exd6 {[%emt 0:00:06]} c3 {[%emt 0:00:46]} 20. Nc4 {[%emt 0:05:22]} (20. Ne4 $15 Nd5 21. Be3) 20... Nf5 {[%emt 0:03:52]} 21. Be3 {[%emt 0:06:39]} O-O {[%emt 0:06:00]} 22. Rd1 {[%emt 0:07:37] Inhibits Nd4.} (22. f4 $15 {is superior.}) 22... Ra8 {[%emt 0:03:05] And now ...Ra4 would win.} 23. g4 {[%emt 0:00:36]} Nxe3 {[%emt 0:06:19]} 24. Nxe3 {[%emt 0:00:28][%mdl 4096] Endgame. KRN-KRN} Ra6 {[%emt 0:02:50]} 25. Rd3 {[%emt 0:01:09][%cal Of2f4]} f6 {[%emt 0:00:56]} 26. Nc4 {[%emt 0:00:29][%cal Of2f4]} e5 {[%emt 0:02:07]} 27. Rxc3 {[%emt 0:02:02][%cal Og4g5]} Kf7 {[%emt 0:00:19]} 28. Rd3 {[%emt 0:08:46]} Ra4 {[%emt 0:01:53]} 29. Ne3 {[%emt 0:00:03]} Rd4 {[%emt 0:01:24]} 30. f3 {[%emt 0:00:30] [#]} (30. Ra3 $11 {remains equal.}) 30... Rxd3 $1 {[%emt 0:01:08]} 31. cxd3 {[%emt 0:00:05] KN-KN} Nb6 {[%emt 0:01:50]} 32. Nf5 {[%emt 0:00:25]} ({Avoid the trap} 32. Nc4 $2 Nxc4 33. dxc4 Ke6 $19) 32... g6 {[%emt 0:01:51]} 33. Ng3 {[%emt 0:00:33]} Ke6 {[%emt 0:01:18]} 34. Ne4 {[%emt 0:00:38]} Nd7 {[%emt 0:00:18]} 35. Kf2 {[%emt 0:00:23]} h6 {[%emt 0:00:25]} 36. h4 {[%emt 0:04:40]} f5 {[%emt 0:01:22]} 37. Ng3 {[%emt 0:00:10] [#]} (37. Nd2 $17) 37... Nf6 $1 $19 {[%emt 0:04:18]} (37... Kxd6 38. gxf5 Nf8 39. Ke3 $11) 38. gxf5+ {[%emt 0:01:23]} (38. Kg2 {was worth a try.}) 38... gxf5 {[%emt 0:00:11]} (38... Kxd6 $2 {too greedy.} 39. fxg6 Ke6 40. h5 $18) 39. f4 $2 {[%emt 0:00:40]} (39. Kg1) 39... exf4 {[%emt 0:01:02]} 40. Ne2 {[%emt 0:00:06]} Nd5 {[%emt 0:01:07]} (40... Kxd6 $2 41. Nxf4 Nd5 42. Ng6 $19) 41. Ng1 $2 {[%emt 0:02:22]} (41. Kf3 Kxd6 42. Nc1) 41... Kxd6 {[%emt 0:01:01]} 42. Nf3 {[%emt 0:00:42]} Nb4 {[%emt 0:00:53]} 43. Ke2 {[%emt 0:00:06]} Nc6 {[%emt 0:00:23] Hoping for ...Nd4+.} 44. Kd2 {[%emt 0:00:58]} Nd4 {[%emt 0:02:00]} 45. Ne1 {[%emt 0:00:26]} f3 {[%emt 0:00:51] Against Ng2.   Weighted Error Value: White=0.69/Black=0.16 (very precise) .  Mistake:       	White=9     	Black=2      Inaccurate:     	White=3     	Black=4      OK:         	White=10    	Black=10     Best:        	White=2     	Black=5      Strong:       	---       	Black=2} 0-1

[Event "28th Hit Open-A 2024"]
[Site "Nova Gorica"]
[Date "2024.01.26"]
[Round "1.19"]
[White "Ashwath, R.."]
[Black "Trybus, Daniel"]
[Result "1-0"]
[ECO "A30"]
[WhiteElo "2284"]
[BlackElo "2039"]
[Annotator "TA"]
[PlyCount "47"]
[EventDate "2024.01.22"]
[EventType "swiss"]
[EventCountry "SLO"]
[SourceTitle "playchess.com"]
[Source "ChessBase"]
[SourceQuality "1"]
[TimeControl "5400+30"]

{[%evp 18,47,60,69,77,74,91,92,96,77,111,108,108,105,99,84,93,97,141,130,137,127,402,364,387,387,398,385,686,673,679,679]} 1. Nf3 {[%emt 0:00:08]} Nf6 {[%emt 0:00:05]} 2. c4 {[%emt 0:00:05]} g6 {[%emt 0:00:06]} 3. b3 {[%emt 0:00:04]} Bg7 {[%emt 0:00:08]} 4. Bb2 {[%emt 0:00:29]} c5 {[%emt 0:00:29]} 5. g3 {[%emt 0:01:32]} O-O {[%emt 0:00:16]} 6. Bg2 {[%emt 0:00:11]} Nc6 {[%emt 0:01:20]} 7. O-O {[%emt 0:00:26]} b6 {[%emt 0:03:18]} 8. d4 {[%emt 0:08:05]} cxd4 {[%emt 0:02:55]} 9. Nxd4 {[%emt 0:00:23]} Bb7 {[%emt 0:00:15]} 10. Nc3 {[%emt 0:01:08]} Qc8 {[%emt 0:08:25]} 11. Nc2 {[%emt 0:04:47][%cal Bd4c2,Bc2e3,Be3d5,Bd5c3,Bc3e4,Be4d6,Bd6f7][%mdl 32]} a6 {[%emt 0:09:32]} 12. Nd5 {[%emt 0:09:16]} Nxd5 {[%emt 0:01:27] White is better.} 13. Bxg7 {[%emt 0:00:11]} Ne3 {[%emt 0:00:08]} 14. Nxe3 {[%emt 0:00:31]} Kxg7 {[%emt 0:00:12]} 15. Nd5 {[%emt 0:01:49]} Qd8 {[%emt 0:00:24]} 16. Qd3 {[%emt 0:08:29]} (16. Qd2 {keeps more tension.} Rb8 17. Qe3 Ba8 18. Rad1) 16... e6 {[%emt 0:07:55]} 17. Nc3 {[%emt 0:03:41] White is more active.} Qf6 {[%emt 0:09:18][%cal Od7d5]} 18. Qxd7 {[%emt 0:05:07]} Rab8 {[%emt 0:08:10][%cal Of8d8] [#] ...Rfd8! would now be deadly.} 19. Ne4 $36 {[%emt 0:11:46][%mdl 2048] Keeping Black busy.} (19. Bxc6 Bxc6 20. Qxc6 Qxc3 $16) 19... Qe5 {[%emt 0:00:13][%mdl 8192] A mistake that costs the game.} (19... Qe7 $16 20. Rfd1 Rfd8 21. Qxe7 Nxe7) 20. Nd6 $18 {[%emt 0:02:07]} Ba8 {[%emt 0:00:40] aiming for ...Rbd8.} 21. Bxc6 {[%emt 0:01:12]} Rbd8 {[%emt 0:01:57]} 22. Nxf7 $1 {[%emt 0:01:12]} Rxf7 {[%emt 0:00:01] [#]} (22... Bxc6 23. Nxe5+ Bxd7) 23. Qxd8 {[%emt 0:00:09]} Bxc6 {[%emt 0:00:05]} 24. Qxb6 {[%emt 0:02:11] Weighted Error Value: White=0.04 (flawless) /Black=0.90.  Loses game:     	---       	Black=1      Mistake:       	---       	Black=1      Inaccurate:     	---       	Black=2      OK:         	White=6     	Black=6      Best:        	White=3     	Black=1      Strong:       	White=1     	---} 1-0

[Event "28th Hit Open-A 2024"]
[Site "Nova Gorica"]
[Date "2024.01.26"]
[Round "1.20"]
[White "Bazilius, Augustinas"]
[Black "Perossa, Nicolas"]
[Result "0-1"]
[ECO "E71"]
[WhiteElo "2030"]
[BlackElo "2277"]
[Annotator "RC"]
[PlyCount "106"]
[EventDate "2024.01.22"]
[EventType "swiss"]
[EventCountry "SLO"]
[SourceTitle "playchess.com"]
[Source "ChessBase"]
[SourceQuality "1"]
[TimeControl "5400+30"]

1. d4 {[%emt 0:00:04]} Nf6 {[%emt 0:00:06]} 2. c4 {[%emt 0:00:05]} g6 {[%emt 0:00:07]} 3. Nc3 {[%emt 0:00:04]} Bg7 {[%emt 0:00:10]} 4. e4 {[%emt 0:00:01]} d6 {[%emt 0:00:09]} 5. h3 {[%emt 0:00:05]} O-O {[%emt 0:02:24]} 6. Be3 {[%emt 0:00:02]} e5 {[%emt 0:00:13]} 7. d5 {[%emt 0:00:02]} a5 {[%emt 0:02:47]} 8. g4 {[%emt 0:00:03]} Na6 {[%emt 0:00:12]} 9. Nge2 {[%emt 0:00:04]} c6 {[%emt 0:13:45]} 10. Ng3 {[%emt 0:00:08]} cxd5 {[%emt 0:00:10]} 11. cxd5 {[%emt 0:00:07]} Bd7 {[%emt 0:02:59]} 12. Qd2 {[%emt 0:00:29]} a4 {[%emt 0:07:43]} 13. f3 {[%emt 0:00:05]} Qa5 {[%emt 0:05:01]} 14. h4 {[%emt 0:00:33]} Rfc8 {[%emt 0:18:02]} 15. h5 {[%emt 0:01:18]} a3 {[%emt 0:07:33]} 16. Rc1 {[%emt 0:11:46]} axb2 {[%emt 0:00:24]} 17. Qxb2 {[%emt 0:00:08]} Nb4 {[%emt 0:07:06]} 18. Bd2 {[%emt 0:04:03]} Qa3 {[%emt 0:08:31]} 19. Rb1 {[%emt 0:04:20]} Nxa2 {[%emt 0:00:28]} 20. Qxa3 {[%emt 0:04:07]} Rxa3 {[%emt 0:00:02]} 21. Nxa2 {[%emt 0:00:15]} Rxa2 {[%emt 0:00:07]} 22. Bd3 {[%emt 0:32:07]} Ra3 {[%emt 0:03:58]} 23. Be2 {[%emt 0:01:34]} Bxg4 {[%emt 0:10:38]} 24. Bb4 {[%emt 0:03:10]} Rxf3 {[%emt 0:00:07]} 25. Bxf3 {[%emt 0:03:09]} Bxf3 {[%emt 0:00:02]} 26. O-O {[%emt 0:01:15]} Bxe4 {[%emt 0:00:32]} 27. Rbc1 {[%emt 0:01:44]} Bc2 {[%emt 0:02:45]} 28. Rf2 {[%emt 0:07:59]} Nxd5 {[%emt 0:00:58]} 29. Rfxc2 {[%emt 0:01:03]} Rxc2 {[%emt 0:00:06]} 30. Rxc2 {[%emt 0:00:05]} Nxb4 {[%emt 0:00:03]} 31. Rc8+ {[%emt 0:00:38]} Bf8 {[%emt 0:00:01]} 32. Ne4 {[%emt 0:00:39]} d5 {[%emt 0:07:36]} 33. Nc5 {[%emt 0:00:07]} Kg7 {[%emt 0:00:59]} 34. h6+ {[%emt 0:00:01]} Kxh6 {[%emt 0:00:01]} 35. Rxf8 {[%emt 0:00:01]} f5 {[%emt 0:00:45]} 36. Rb8 {[%emt 0:00:25]} Na6 {[%emt 0:00:14]} 37. Nxa6 {[%emt 0:00:28]} bxa6 {[%emt 0:00:01]} 38. Rd8 {[%emt 0:00:10]} d4 {[%emt 0:01:17]} 39. Rd5 {[%emt 0:00:04]} e4 {[%emt 0:00:16]} 40. Rxd4 {[%emt 0:00:01]} Kg5 {[%emt 0:00:07]} 41. Rd7 {[%emt 0:00:36]} h5 {[%emt 0:01:06]} 42. Rd6 {[%emt 0:00:05]} a5 {[%emt 0:00:21]} 43. Kf2 {[%emt 0:00:26]} f4 {[%emt 0:00:38]} 44. Ra6 {[%emt 0:00:09]} h4 {[%emt 0:00:30]} 45. Kg2 {[%emt 0:03:48]} Kf5 {[%emt 0:00:01]} 46. Kh3 {[%emt 0:01:44]} e3 {[%emt 0:01:10]} 47. Kg2 {[%emt 0:01:13]} g5 {[%emt 0:00:55]} 48. Kf3 {[%emt 0:00:17]} g4+ {[%emt 0:00:06]} 49. Ke2 {[%emt 0:00:05]} h3 {[%emt 0:00:14]} 50. Rxa5+ {[%emt 0:01:03]} Kg6 {[%emt 0:00:44]} 51. Ra8 {[%emt 0:01:18]} h2 {[%emt 0:00:39]} 52. Rh8 {[%emt 0:00:29]} g3 {[%emt 0:00:02]} 53. Kf3 {[%emt 0:03:46]} e2 {[%emt 0:00:08]} 0-1

[Event "28th Hit Open-A 2024"]
[Site "Nova Gorica"]
[Date "2024.01.26"]
[Round "1.21"]
[White "Drazic, Sinisa"]
[Black "Kejzar, Petra"]
[Result "1-0"]
[ECO "D00"]
[WhiteElo "2270"]
[BlackElo "2025"]
[Annotator "RC"]
[PlyCount "67"]
[EventDate "2024.01.22"]
[EventType "swiss"]
[EventCountry "SLO"]
[SourceTitle "playchess.com"]
[Source "ChessBase"]
[SourceQuality "1"]
[TimeControl "5400+30"]

1. d4 {[%emt 0:02:38]} Nf6 {[%emt 0:00:11]} 2. Bg5 {[%emt 0:00:07]} d5 {[%emt 0:00:43]} 3. e3 {[%emt 0:00:09]} e6 {[%emt 0:00:18]} 4. Nd2 {[%emt 0:00:07]} c5 {[%emt 0:02:35]} 5. c3 {[%emt 0:00:05]} Nbd7 {[%emt 0:01:54]} 6. f4 {[%emt 0:00:08]} a6 {[%emt 0:03:19]} 7. Bd3 {[%emt 0:00:14]} b5 {[%emt 0:01:35]} 8. Ngf3 {[%emt 0:00:15]} Be7 {[%emt 0:00:52]} 9. Ne5 {[%emt 0:00:18]} Bb7 {[%emt 0:03:03]} 10. O-O {[%emt 0:00:23]} Ne4 {[%emt 0:04:44]} 11. Bxe7 {[%emt 0:00:21]} Qxe7 {[%emt 0:00:12]} 12. Bxe4 {[%emt 0:00:15]} dxe4 {[%emt 0:01:07]} 13. Nxd7 {[%emt 0:00:20]} Qxd7 {[%emt 0:00:39]} 14. dxc5 {[%emt 0:00:31]} O-O {[%emt 0:05:52]} 15. Nb3 {[%emt 0:00:12]} Qc7 {[%emt 0:01:09]} 16. Qd6 {[%emt 0:00:25]} Qxd6 {[%emt 0:01:38]} 17. cxd6 {[%emt 0:00:02]} Rac8 {[%emt 0:09:11]} 18. Rfd1 {[%emt 0:03:03]} Rfd8 {[%emt 0:00:31]} 19. a4 {[%emt 0:01:20]} Bd5 {[%emt 0:04:03]} 20. Nd4 {[%emt 0:00:02]} bxa4 {[%emt 0:01:57]} 21. Rxa4 {[%emt 0:00:02]} Rxd6 {[%emt 0:00:44]} 22. Nc2 {[%emt 0:00:24]} Rb6 {[%emt 0:02:23]} 23. Rb4 {[%emt 0:00:01]} Rbc6 {[%emt 0:11:59]} 24. Nd4 {[%emt 0:00:05]} Rc4 {[%emt 0:02:13]} 25. Rb6 {[%emt 0:01:46]} a5 {[%emt 0:04:56]} 26. Ra1 {[%emt 0:05:49]} a4 {[%emt 0:03:08]} 27. Ra6 {[%emt 0:01:03]} Rb8 {[%emt 0:00:25]} 28. R1xa4 {[%emt 0:00:06]} Rxa4 {[%emt 0:02:16]} 29. Rxa4 {[%emt 0:00:01]} Rxb2 {[%emt 0:00:27]} 30. c4 {[%emt 0:00:02]} Bb7 {[%emt 0:00:27]} 31. c5 {[%emt 0:00:01]} Bd5 {[%emt 0:04:53]} 32. c6 {[%emt 0:00:43]} Rb8 {[%emt 0:01:40]} 33. c7 {[%emt 0:00:43]} Rc8 {[%emt 0:03:14]} 34. Rb4 {[%emt 0:00:07]} 1-0

[Event "28th Hit Open-A 2024"]
[Site "Nova Gorica"]
[Date "2024.01.26"]
[Round "1.22"]
[White "Zupancic, Urban"]
[Black "Plaskan, Jure"]
[Result "1-0"]
[ECO "B42"]
[WhiteElo "2025"]
[BlackElo "2262"]
[Annotator "RC"]
[PlyCount "129"]
[EventDate "2024.01.22"]
[EventType "swiss"]
[EventCountry "SLO"]
[SourceTitle "playchess.com"]
[Source "ChessBase"]
[SourceQuality "1"]
[TimeControl "5400+30"]

1. e4 {[%emt 0:00:04]} c5 {[%emt 0:00:03]} 2. Nf3 {[%emt 0:00:11]} e6 {[%emt 0:00:04]} 3. d4 {[%emt 0:00:21]} cxd4 {[%emt 0:00:03]} 4. Nxd4 {[%emt 0:00:14]} a6 {[%emt 0:00:03]} 5. Bd3 {[%emt 0:01:04]} Nf6 {[%emt 0:01:14]} 6. O-O {[%emt 0:01:35]} e5 {[%emt 0:00:45]} 7. Nb3 {[%emt 0:05:31]} Nc6 {[%emt 0:05:03]} 8. c4 {[%emt 0:07:22]} d6 {[%emt 0:00:08]} 9. Nc3 {[%emt 0:01:03]} Be6 {[%emt 0:00:28]} 10. Nd5 {[%emt 0:06:41]} Rc8 {[%emt 0:06:47]} 11. f3 {[%emt 0:08:29]} Be7 {[%emt 0:24:35]} 12. Be3 {[%emt 0:03:35]} Nd7 {[%emt 0:00:23]} 13. Qd2 {[%emt 0:10:37]} O-O {[%emt 0:09:38]} 14. Rfd1 {[%emt 0:09:00]} Nc5 {[%emt 0:13:56]} 15. Bf1 {[%emt 0:11:40]} Bxd5 {[%emt 0:01:04]} 16. cxd5 {[%emt 0:05:49]} Nxb3 {[%emt 0:00:24]} 17. axb3 {[%emt 0:00:09]} Nd4 {[%emt 0:05:00]} 18. Bxd4 {[%emt 0:00:20]} exd4 {[%emt 0:00:04]} 19. Qxd4 {[%emt 0:01:08]} Rc2 {[%emt 0:00:31]} 20. f4 {[%emt 0:11:06]} Re8 {[%emt 0:20:04]} 21. Re1 {[%emt 0:06:21]} g6 {[%emt 0:03:29]} 22. Rad1 {[%emt 0:02:39]} Bf8 {[%emt 0:03:57]} 23. Bd3 {[%emt 0:01:13]} Rc7 {[%emt 0:00:24]} 24. Re2 {[%emt 0:04:04]} Qh4 {[%emt 0:01:05]} 25. g3 {[%emt 0:00:33]} Qg4 {[%emt 0:00:21]} 26. Rde1 {[%emt 0:01:12]} Bg7 {[%emt 0:00:36]} 27. Qb6 {[%emt 0:00:25]} Rec8 {[%emt 0:01:49]} 28. Kg2 {[%emt 0:00:43]} Qd7 {[%emt 0:00:08]} 29. Bc4 {[%emt 0:00:35]} g5 {[%emt 0:02:14]} 30. e5 {[%emt 0:01:10]} gxf4 {[%emt 0:00:04]} 31. Qxd6 {[%emt 0:00:21]} f3+ {[%emt 0:00:11]} 32. Kxf3 {[%emt 0:00:10]} Qf5+ {[%emt 0:00:14]} 33. Kg2 {[%emt 0:00:08]} Bf8 {[%emt 0:00:31]} 34. Qf6 {[%emt 0:00:33]} Qxf6 {[%emt 0:01:10]} 35. exf6 {[%emt 0:00:05]} b5 {[%emt 0:00:08]} 36. Bd3 {[%emt 0:00:23]} Rd8 {[%emt 0:00:03]} 37. Re5 {[%emt 0:01:27]} Rc5 {[%emt 0:00:30]} 38. Be4 {[%emt 0:00:36]} h6 {[%emt 0:01:36]} 39. Re2 {[%emt 0:00:14]} Bd6 {[%emt 0:00:36]} 40. Rh5 {[%emt 0:00:22]} Bf8 {[%emt 0:00:34]} 41. Bf3 {[%emt 0:00:29]} Rd6 {[%emt 0:00:24]} 42. Rf5 {[%emt 0:00:09]} Rc8 {[%emt 0:00:36]} 43. g4 {[%emt 0:00:45]} a5 {[%emt 0:00:26]} 44. Be4 {[%emt 0:01:00]} a4 {[%emt 0:00:11]} 45. bxa4 {[%emt 0:00:18]} bxa4 {[%emt 0:00:03]} 46. g5 {[%emt 0:00:44]} Rb8 {[%emt 0:00:34]} 47. h4 {[%emt 0:00:39]} Rdb6 {[%emt 0:00:18]} 48. Rff2 {[%emt 0:00:27]} Bc5 {[%emt 0:00:06]} 49. Rf1 {[%emt 0:00:41]} Rxb2 {[%emt 0:00:08]} 50. Rxb2 {[%emt 0:00:24]} Rxb2+ {[%emt 0:00:03]} 51. Kf3 {[%emt 0:00:32]} hxg5 {[%emt 0:01:46]} 52. h5 {[%emt 0:00:33]} Bf8 {[%emt 0:01:22]} 53. Rc1 {[%emt 0:00:28]} Rb6 {[%emt 0:00:09]} 54. Rc6 {[%emt 0:00:29]} Rxc6 {[%emt 0:00:49]} 55. dxc6 {[%emt 0:00:05]} Bd6 {[%emt 0:00:03]} 56. Kg4 {[%emt 0:00:46]} Bf4 {[%emt 0:00:42]} 57. h6 {[%emt 0:00:36]} a3 {[%emt 0:00:31]} 58. Bd5 {[%emt 0:00:26]} Kh7 {[%emt 0:00:06]} 59. Bxf7 {[%emt 0:00:19]} Kxh6 {[%emt 0:00:09]} 60. Kf5 {[%emt 0:00:33]} Bc7 {[%emt 0:00:18]} 61. Bd5 {[%emt 0:00:37]} g4 {[%emt 0:01:13]} 62. Kxg4 {[%emt 0:00:39]} Kg6 {[%emt 0:01:05]} 63. f7 {[%emt 0:00:06]} Kg7 {[%emt 0:00:11]} 64. Kf5 {[%emt 0:00:11]} Kf8 {[%emt 0:00:46]} 65. Ke6 {[%emt 0:00:15]} 1-0